[Event "Live Chess"]
[Site "Chess.com"]
[Date "2024.06.01"]
[Round "-"]
[White "resipsa6"]
[Black "DoYouLikeCurry"]
[Result "1-0"]
[WhiteElo "2056"]
[BlackElo "1447"]
[TimeControl "300"]
[EndTime "9:13:25 PDT"]
[Termination "resipsa6 won on time"]

1. e4 {[%clk 0:04:59.2]} 1... c6 {[%clk 0:04:58.5]} 2. d4 {[%clk 0:04:58.3]}
2... d5 {[%clk 0:04:56.5]} 3. exd5 {[%clk 0:04:57.7]} 3... cxd5 {[%clk
0:04:55.7]} 4. Bd3 {[%clk 0:04:56.5]} 4... Nc6 {[%clk 0:04:54.5]} 5. c3 {[%clk
0:04:55.3]} 5... Nf6 {[%clk 0:04:52.5]} 6. Nf3 {[%clk 0:04:53.8]} 6... Bg4
{[%clk 0:04:51]} 7. Bf4 {[%clk 0:04:45.5]} 7... e6 {[%clk 0:04:45.4]} 8. Nbd2
{[%clk 0:04:36]} 8... Qb6 {[%clk 0:04:36.7]} 9. Qc2 {[%clk 0:04:23.3]} 9... Bxf3
{[%clk 0:04:28.5]} 10. Nxf3 {[%clk 0:04:21.6]} 10... Rc8 {[%clk 0:04:24.8]} 11.
Qe2 {[%clk 0:04:14.8]} 11... Be7 {[%clk 0:04:13.7]} 12. O-O {[%clk 0:04:13.3]}
12... O-O {[%clk 0:04:11.5]} 13. Ne5 {[%clk 0:04:10.7]} 13... Nxe5 {[%clk
0:04:04.8]} 14. Bxe5 {[%clk 0:04:10.6]} 14... Bd6 {[%clk 0:04:01.1]} 15. Bxf6
{[%clk 0:04:08.2]} 15... gxf6 {[%clk 0:04:01]} 16. Qh5 {[%clk 0:04:02.2]} 16...
f5 {[%clk 0:03:52.4]} 17. Qg5+ {[%clk 0:04:00.3]} 17... Kh8 {[%clk 0:03:49.5]}
18. Qf6+ {[%clk 0:03:57.6]} 18... Kg8 {[%clk 0:03:47.3]} 19. Rab1 {[%clk
0:03:34]} 19... Qc7 {[%clk 0:03:45.7]} 20. Qh4 {[%clk 0:03:25]} 20... Be7 {[%clk
0:03:42]} 21. Qh5 {[%clk 0:03:18.1]} 21... Kh8 {[%clk 0:03:24.6]} 22. f4 {[%clk
0:03:15.7]} 22... Rg8 {[%clk 0:03:18.7]} 23. Qxf7 {[%clk 0:03:07.4]} 23... Rg6
{[%clk 0:02:50.4]} 24. Rbe1 {[%clk 0:02:27.4]} 24... Rf8 {[%clk 0:02:46.3]} 25.
Qxg6 {[%clk 0:01:51.3]} 25... hxg6 {[%clk 0:02:44.6]} 26. Rxe6 {[%clk
0:01:46.1]} 26... Rf6 {[%clk 0:02:23.7]} 27. Re3 {[%clk 0:01:38.9]} 27... Bd6
{[%clk 0:02:18.1]} 28. Re8+ {[%clk 0:01:23.2]} 28... Kg7 {[%clk 0:02:13.2]} 29.
Rfe1 {[%clk 0:01:19.8]} 29... Bxf4 {[%clk 0:02:09.2]} 30. R1e7+ {[%clk 0:01:18]}
30... Rf7 {[%clk 0:02:05.9]} 31. Rxc7 {[%clk 0:01:16.8]} 31... Rxc7 {[%clk
0:02:03]} 32. g3 {[%clk 0:01:15.4]} 32... Bc1 {[%clk 0:02:00.6]} 33. Re2 {[%clk
0:01:13.4]} 33... Kf6 {[%clk 0:01:54.7]} 34. Kf2 {[%clk 0:01:12]} 34... Re7
{[%clk 0:01:53.3]} 35. Rxe7 {[%clk 0:01:10.4]} 35... Kxe7 {[%clk 0:01:52.7]} 36.
b3 {[%clk 0:01:09.3]} 36... Ke6 {[%clk 0:01:49.3]} 37. c4 {[%clk 0:01:00.8]}
37... dxc4 {[%clk 0:01:45.5]} 38. Bxc4+ {[%clk 0:00:59.9]} 38... Kd6 {[%clk
0:01:43.2]} 39. h4 {[%clk 0:00:58.2]} 39... Bb2 {[%clk 0:01:37.5]} 40. Ke3
{[%clk 0:00:56.8]} 40... Bc1+ {[%clk 0:01:36.1]} 41. Kf3 {[%clk 0:00:55.5]}
41... Bb2 {[%clk 0:01:35.1]} 42. Bf7 {[%clk 0:00:54.8]} 42... Bxd4 {[%clk
0:01:32.2]} 43. Bxg6 {[%clk 0:00:54.1]} 43... Ke6 {[%clk 0:01:30.2]} 44. Be8
{[%clk 0:00:51.3]} 44... Bc3 {[%clk 0:01:24.9]} 45. Bb5 {[%clk 0:00:49.7]} 45...
b6 {[%clk 0:01:23.1]} 46. Bd3 {[%clk 0:00:49]} 46... Be1 {[%clk 0:01:20.6]} 47.
Kf4 {[%clk 0:00:45.8]} 47... Bd2+ {[%clk 0:01:17.2]} 48. Kf3 {[%clk 0:00:44]}
48... Be1 {[%clk 0:01:16.1]} 49. h5 {[%clk 0:00:42.2]} 49... Kf6 {[%clk
0:01:13.1]} 50. g4 {[%clk 0:00:39.2]} 50... fxg4+ {[%clk 0:01:11.2]} 51. Kxg4
{[%clk 0:00:39.1]} 51... Kg7 {[%clk 0:01:06.8]} 52. Bg6 {[%clk 0:00:38.4]} 52...
Bd2 {[%clk 0:01:04.4]} 53. Kf5 {[%clk 0:00:38.3]} 53... Be3 {[%clk 0:01:00]} 54.
Ke6 {[%clk 0:00:38.2]} 54... Bc5 {[%clk 0:00:57]} 55. Kd5 {[%clk 0:00:38.1]}
55... Be3 {[%clk 0:00:56]} 56. Kc4 {[%clk 0:00:37.4]} 56... Bc5 {[%clk
0:00:51.2]} 57. Kb5 {[%clk 0:00:36.6]} 57... Bd6 {[%clk 0:00:47.1]} 58. Ka6
{[%clk 0:00:35.1]} 58... Bb8 {[%clk 0:00:46.6]} 59. Kb7 {[%clk 0:00:34.4]} 59...
Bd6 {[%clk 0:00:25.3]} 60. Kxa7 {[%clk 0:00:31.9]} 60... b5 {[%clk 0:00:24.6]}
61. a4 {[%clk 0:00:28.1]} 61... bxa4 {[%clk 0:00:19.6]} 62. bxa4 {[%clk
0:00:28]} 62... Bc5+ {[%clk 0:00:18.4]} 63. Ka6 {[%clk 0:00:27]} 63... Be3
{[%clk 0:00:17.5]} 64. Kb5 {[%clk 0:00:26.3]} 64... Bf2 {[%clk 0:00:16]} 65. a5
{[%clk 0:00:25.2]} 65... Be3 {[%clk 0:00:15.1]} 66. a6 {[%clk 0:00:24.5]} 66...
Bf2 {[%clk 0:00:14.3]} 67. Kc6 {[%clk 0:00:23.8]} 67... Be3 {[%clk 0:00:13.5]}
68. Kd5 {[%clk 0:00:23.2]} 68... Bf2 {[%clk 0:00:12.5]} 69. Ke6 {[%clk
0:00:22.7]} 69... Ba7 {[%clk 0:00:12]} 70. Kf5 {[%clk 0:00:21.7]} 70... Be3
{[%clk 0:00:11.2]} 71. Be8 {[%clk 0:00:21]} 71... Kh6 {[%clk 0:00:09.2]} 72. Kg4
{[%clk 0:00:19.4]} 1-0

[Event "Live Chess"]
[Site "Chess.com"]
[Date "2024.06.01"]
[Round "-"]
[White "Brooms1989"]
[Black "Mangoalo"]
[Result "1-0"]
[WhiteElo "1018"]
[BlackElo "996"]
[TimeControl "300"]
[EndTime "9:13:37 PDT"]
[Termination "Brooms1989 won by resignation"]

1. e4 {[%clk 0:04:57.2]} 1... c6 {[%clk 0:04:59.6]} 2. Nf3 {[%clk 0:04:54.2]}
2... d5 {[%clk 0:04:59]} 3. exd5 {[%clk 0:04:53.8]} 3... Bg4 {[%clk 0:04:57.8]}
4. dxc6 {[%clk 0:04:37.1]} 4... Nxc6 {[%clk 0:04:56.4]} 5. Be2 {[%clk
0:04:35.9]} 5... Nf6 {[%clk 0:04:54.3]} 6. h3 {[%clk 0:04:34.5]} 6... Bxf3
{[%clk 0:04:53.2]} 7. Bxf3 {[%clk 0:04:33.2]} 7... e6 {[%clk 0:04:53.1]} 8. O-O
{[%clk 0:04:30.5]} 8... Bc5 {[%clk 0:04:51.9]} 9. Nc3 {[%clk 0:04:27.7]} 9... a6
{[%clk 0:04:50.7]} 10. d3 {[%clk 0:04:25.5]} 10... O-O {[%clk 0:04:47.4]} 11.
Bg5 {[%clk 0:04:23.5]} 11... h6 {[%clk 0:04:45.1]} 12. Bh4 {[%clk 0:04:22.3]}
12... Be7 {[%clk 0:04:40.7]} 13. Bxc6 {[%clk 0:04:11.2]} 13... bxc6 {[%clk
0:04:39.1]} 14. Re1 {[%clk 0:04:06.8]} 14... Nd5 {[%clk 0:04:37.8]} 15. Bxe7
{[%clk 0:04:03.8]} 15... Qxe7 {[%clk 0:04:37.7]} 16. Rb1 {[%clk 0:03:36.8]}
16... Nxc3 {[%clk 0:04:35.4]} 17. bxc3 {[%clk 0:03:36.7]} 17... Rab8 {[%clk
0:04:34]} 18. Qf3 {[%clk 0:03:32.7]} 18... Rxb1 {[%clk 0:04:29.5]} 19. Rxb1
{[%clk 0:03:31.1]} 19... c5 {[%clk 0:04:19.6]} 20. Qc6 {[%clk 0:03:23.2]} 20...
Rd8 {[%clk 0:03:53.4]} 21. Qxa6 {[%clk 0:02:58.9]} 21... Rd6 {[%clk 0:03:38]}
22. Rb8+ {[%clk 0:02:50.2]} 22... Kh7 {[%clk 0:03:37.2]} 23. Qa4 {[%clk
0:02:45.4]} 23... Rc6 {[%clk 0:03:26.9]} 24. Qe4+ {[%clk 0:02:43.1]} 24... f5
{[%clk 0:03:23.3]} 25. Qxc6 {[%clk 0:02:41.8]} 25... Qg5 {[%clk 0:03:22]} 1-0

[Event "Live Chess"]
[Site "Chess.com"]
[Date "2024.06.01"]
[Round "-"]
[White "Tatarinov_Maxim"]
[Black "f4nomore"]
[Result "1-0"]
[WhiteElo "2281"]
[BlackElo "1197"]
[TimeControl "300"]
[EndTime "9:13:40 PDT"]
[Termination "Tatarinov_Maxim won by resignation"]

1. Nf3 {[%clk 0:04:56.6]} 1... g6 {[%clk 0:04:59.9]} 2. g3 {[%clk 0:04:54.3]}
2... Bg7 {[%clk 0:04:59.6]} 3. Bg2 {[%clk 0:04:53.9]} 3... d6 {[%clk 0:04:58.6]}
4. O-O {[%clk 0:04:52.6]} 4... c5 {[%clk 0:04:56.7]} 5. c4 {[%clk 0:04:52.1]}
5... Nc6 {[%clk 0:04:54.8]} 6. Nc3 {[%clk 0:04:51]} 6... Nf6 {[%clk 0:04:53]} 7.
d4 {[%clk 0:04:48.5]} 7... cxd4 {[%clk 0:04:50.6]} 8. Nxd4 {[%clk 0:04:48.4]}
8... O-O {[%clk 0:04:47.3]} 9. Nxc6 {[%clk 0:04:46.1]} 9... bxc6 {[%clk
0:04:45.1]} 10. Bxc6 {[%clk 0:04:46]} 10... Rb8 {[%clk 0:04:43.6]} 11. Bg2
{[%clk 0:04:44.8]} 11... Bb7 {[%clk 0:04:36]} 12. Bxb7 {[%clk 0:04:42.2]} 12...
Rxb7 {[%clk 0:04:34]} 13. Qc2 {[%clk 0:04:42.1]} 13... e6 {[%clk 0:04:28.1]} 14.
b3 {[%clk 0:04:39.7]} 14... Nd7 {[%clk 0:04:21.4]} 15. Bb2 {[%clk 0:04:37.8]}
15... Nc5 {[%clk 0:04:18.1]} 16. Rad1 {[%clk 0:04:35.9]} 16... Rd7 {[%clk
0:04:12.4]} 17. Ba3 {[%clk 0:04:32.5]} 17... Qf6 {[%clk 0:04:01.9]} 18. Bxc5
{[%clk 0:04:28.8]} 18... Qxc3 {[%clk 0:03:55.8]} 19. Qxc3 {[%clk 0:04:27.7]}
19... Bxc3 {[%clk 0:03:53]} 20. Rxd6 {[%clk 0:04:27.6]} 20... Rb7 {[%clk
0:03:41.4]} 21. Rfd1 {[%clk 0:04:22.7]} 21... Bf6 {[%clk 0:03:37.7]} 22. Ra6
{[%clk 0:04:14.7]} 22... Ra8 {[%clk 0:03:23.1]} 23. Be3 {[%clk 0:04:08.3]} 23...
Kg7 {[%clk 0:03:20.7]} 24. Kg2 {[%clk 0:04:07.1]} 24... Bd8 {[%clk 0:03:01.4]}
25. Rxa7 {[%clk 0:03:57.2]} 25... Raxa7 {[%clk 0:02:48.1]} 26. Bxa7 {[%clk
0:03:57.1]} 26... Rxa7 {[%clk 0:02:45.6]} 27. Rxd8 {[%clk 0:03:55.8]} 27... Rxa2
{[%clk 0:02:44.1]} 28. Kf3 {[%clk 0:03:55.3]} 28... Rb2 {[%clk 0:02:42.1]} 29.
Rb8 {[%clk 0:03:53.6]} 29... Kf6 {[%clk 0:02:39.8]} 30. c5 {[%clk 0:03:53]}
30... Ke7 {[%clk 0:02:38.4]} 31. b4 {[%clk 0:03:51.1]} 31... Kd7 {[%clk
0:02:37.4]} 32. b5 {[%clk 0:03:49.3]} 32... Kc7 {[%clk 0:02:35.6]} 33. Rb6
{[%clk 0:03:47.5]} 33... h5 {[%clk 0:02:32]} 34. h4 {[%clk 0:03:31.2]} 34... Rc2
{[%clk 0:02:25.1]} 35. Rc6+ {[%clk 0:03:29.2]} 35... Kb7 {[%clk 0:02:21.9]} 36.
e3 {[%clk 0:03:28.6]} 36... Rb2 {[%clk 0:02:18]} 37. Rb6+ {[%clk 0:03:24.8]}
37... Kc7 {[%clk 0:02:15.8]} 38. Rc6+ {[%clk 0:03:12.5]} 38... Kb7 {[%clk
0:02:14.1]} 39. Rd6 {[%clk 0:03:11.8]} 39... Rxb5 {[%clk 0:02:09.8]} 40. Rd7+
{[%clk 0:03:11.3]} 40... Kc6 {[%clk 0:02:08.1]} 41. Rxf7 {[%clk 0:03:11.2]}
41... Rxc5 {[%clk 0:02:06.6]} 42. Rf6 {[%clk 0:03:10.5]} 42... Rf5+ {[%clk
0:02:00.8]} 43. Rxf5 {[%clk 0:03:09.3]} 43... exf5 {[%clk 0:01:59.4]} 44. Kf4
{[%clk 0:03:09.2]} 44... Kd6 {[%clk 0:01:57.7]} 45. Kg5 {[%clk 0:03:08.4]} 45...
Ke6 {[%clk 0:01:56.5]} 46. Kxg6 {[%clk 0:03:07.8]} 1-0

[Event "Live Chess"]
[Site "Chess.com"]
[Date "2024.06.01"]
[Round "-"]
[White "wadsy27"]
[Black "Duke_of_Bebington"]
[Result "1-0"]
[WhiteElo "2599"]
[BlackElo "1622"]
[TimeControl "300"]
[EndTime "9:13:43 PDT"]
[Termination "wadsy27 won by resignation"]

1. Nf3 {[%clk 0:04:59.1]} 1... d5 {[%clk 0:04:58.2]} 2. g3 {[%clk 0:04:59]} 2...
Nf6 {[%clk 0:04:56.3]} 3. Bg2 {[%clk 0:04:58.8]} 3... c6 {[%clk 0:04:55.1]} 4.
O-O {[%clk 0:04:58.6]} 4... Bf5 {[%clk 0:04:54.4]} 5. c4 {[%clk 0:04:58.5]} 5...
e6 {[%clk 0:04:52.5]} 6. Qb3 {[%clk 0:04:58.3]} 6... Qb6 {[%clk 0:04:49.9]} 7.
d3 {[%clk 0:04:58]} 7... Nbd7 {[%clk 0:04:47.5]} 8. Be3 {[%clk 0:04:57.3]} 8...
Qxb3 {[%clk 0:04:42.5]} 9. axb3 {[%clk 0:04:57.2]} 9... a6 {[%clk 0:04:40.8]}
10. Bd4 {[%clk 0:04:56]} 10... Be7 {[%clk 0:04:38.6]} 11. Bc3 {[%clk 0:04:55.7]}
11... O-O {[%clk 0:04:37.4]} 12. Nbd2 {[%clk 0:04:55.5]} 12... Rfe8 {[%clk
0:04:32.6]} 13. b4 {[%clk 0:04:54.7]} 13... c5 {[%clk 0:04:22.4]} 14. bxc5
{[%clk 0:04:50.8]} 14... Nxc5 {[%clk 0:04:18.8]} 15. Nd4 {[%clk 0:04:28.1]}
15... Bg6 {[%clk 0:04:11.8]} 16. cxd5 {[%clk 0:04:27.5]} 16... Nxd5 {[%clk
0:04:09.1]} 17. Bxd5 {[%clk 0:04:26.8]} 17... exd5 {[%clk 0:04:08]} 18. N2f3
{[%clk 0:04:26]} 18... Bf6 {[%clk 0:03:58]} 19. Rfc1 {[%clk 0:04:23.6]} 19...
Bxd4 {[%clk 0:03:42.5]} 20. Bxd4 {[%clk 0:04:19.8]} 20... Nb3 {[%clk 0:03:38.6]}
21. Kf1 {[%clk 0:04:18.1]} 21... Nxa1 {[%clk 0:03:35.7]} 22. Rxa1 {[%clk
0:04:17.4]} 22... Rac8 {[%clk 0:03:33.4]} 23. Bc3 {[%clk 0:04:17]} 23... h6
{[%clk 0:03:26.8]} 24. Nd4 {[%clk 0:04:16.5]} 24... Bh5 {[%clk 0:03:10.6]} 25.
f3 {[%clk 0:04:15.6]} 25... g5 {[%clk 0:03:06.4]} 26. Ra5 {[%clk 0:04:14.1]}
26... Red8 {[%clk 0:02:58.7]} 27. Nf5 {[%clk 0:04:12.7]} 27... Kh7 {[%clk
0:02:51.9]} 28. Ne7 {[%clk 0:04:09.6]} 28... Rc7 {[%clk 0:02:42.3]} 29. Nxd5
{[%clk 0:04:08.9]} 29... Rc6 {[%clk 0:02:31.6]} 30. Nf6+ {[%clk 0:04:08]} 30...
Kg6 {[%clk 0:02:27.9]} 31. g4 {[%clk 0:04:07.4]} 31... Rxf6 {[%clk 0:02:21.1]}
32. gxh5+ {[%clk 0:04:06.8]} 32... Kg7 {[%clk 0:02:16.3]} 33. Rf5 {[%clk
0:04:06]} 33... Rd6 {[%clk 0:02:14.4]} 34. Rxf6 {[%clk 0:04:05.4]} 34... Rxf6
{[%clk 0:02:13.6]} 35. b4 {[%clk 0:04:05]} 1-0

[Event "Live Chess"]
[Site "Chess.com"]
[Date "2024.06.01"]
[Round "-"]
[White "Dhaydon19"]
[Black "hapehansen"]
[Result "1-0"]
[WhiteElo "2709"]
[BlackElo "2260"]
[TimeControl "300"]
[EndTime "9:13:45 PDT"]
[Termination "Dhaydon19 won by resignation"]

1. e4 {[%clk 0:04:57.6]} 1... c6 {[%clk 0:04:57.7]} 2. Nc3 {[%clk 0:04:57]} 2...
d5 {[%clk 0:04:56.4]} 3. d3 {[%clk 0:04:56.7]} 3... dxe4 {[%clk 0:04:53.5]} 4.
Nxe4 {[%clk 0:04:44.6]} 4... Nf6 {[%clk 0:04:50.1]} 5. Nxf6+ {[%clk 0:04:43.5]}
5... exf6 {[%clk 0:04:49]} 6. Nf3 {[%clk 0:04:43.2]} 6... Bd6 {[%clk 0:04:45.4]}
7. Be2 {[%clk 0:04:42.7]} 7... O-O {[%clk 0:04:43.5]} 8. O-O {[%clk 0:04:42.3]}
8... Re8 {[%clk 0:04:40.7]} 9. c3 {[%clk 0:04:41.4]} 9... Nd7 {[%clk 0:04:35.8]}
10. d4 {[%clk 0:04:39.8]} 10... Nf8 {[%clk 0:04:34]} 11. Be3 {[%clk 0:04:36.7]}
11... Be6 {[%clk 0:04:24.4]} 12. Re1 {[%clk 0:04:32.6]} 12... Ng6 {[%clk
0:04:18.8]} 13. g3 {[%clk 0:04:30.6]} 13... Qc7 {[%clk 0:04:02.7]} 14. Qc2
{[%clk 0:04:28.1]} 14... Rad8 {[%clk 0:03:59.7]} 15. Rad1 {[%clk 0:04:25.7]}
15... Ne7 {[%clk 0:03:48.7]} 16. c4 {[%clk 0:04:14.2]} 16... Bf5 {[%clk
0:03:37.3]} 17. Bd3 {[%clk 0:04:09.8]} 17... Qd7 {[%clk 0:03:31.5]} 18. a3
{[%clk 0:04:04.2]} 18... g6 {[%clk 0:03:27.5]} 19. Nh4 {[%clk 0:03:28]} 19...
Bxd3 {[%clk 0:03:10]} 20. Qxd3 {[%clk 0:03:26.3]} 20... Qg4 {[%clk 0:03:01]} 21.
Kg2 {[%clk 0:03:23.3]} 21... h5 {[%clk 0:02:41.8]} 22. h3 {[%clk 0:03:13.5]}
22... Qd7 {[%clk 0:02:40.5]} 23. Bh6 {[%clk 0:03:12.1]} 23... f5 {[%clk
0:02:28]} 24. Bg5 {[%clk 0:03:09.6]} 24... Rc8 {[%clk 0:02:15.9]} 25. Qd2 {[%clk
0:03:08.6]} 25... Kh7 {[%clk 0:02:11.3]} 26. Nf3 {[%clk 0:03:01.2]} 26... Ng8
{[%clk 0:02:08.2]} 27. Bf4 {[%clk 0:02:57]} 27... Nf6 {[%clk 0:02:04]} 28. Bxd6
{[%clk 0:02:50]} 28... Qxd6 {[%clk 0:01:57.9]} 29. Ng5+ {[%clk 0:02:47.4]} 29...
Kg7 {[%clk 0:01:53.6]} 30. h4 {[%clk 0:02:42.9]} 30... Rxe1 {[%clk 0:01:51.3]}
31. Rxe1 {[%clk 0:02:41.5]} 31... Rd8 {[%clk 0:01:49.3]} 32. Rd1 {[%clk
0:02:38.7]} 32... Re8 {[%clk 0:01:48.3]} 33. Qc3 {[%clk 0:02:33.8]} 33... Kg8
{[%clk 0:01:42.8]} 34. Nf3 {[%clk 0:02:25.4]} 34... f4 {[%clk 0:01:32.9]} 35.
Qd3 {[%clk 0:02:14.2]} 35... fxg3 {[%clk 0:01:30]} 36. fxg3 {[%clk 0:02:13.3]}
36... Ne4 {[%clk 0:01:28.7]} 37. Ne5 {[%clk 0:02:11.5]} 37... Nf6 {[%clk
0:01:24.2]} 38. Qf3 {[%clk 0:02:09]} 38... Re7 {[%clk 0:01:20.1]} 39. c5 {[%clk
0:02:06.6]} 39... Qd5 {[%clk 0:01:18.1]} 40. Qxd5 {[%clk 0:02:05.3]} 40... Nxd5
{[%clk 0:01:15.5]} 41. Rd3 {[%clk 0:02:03.7]} 41... Nc7 {[%clk 0:01:11.5]} 42.
Kf3 {[%clk 0:02:00.8]} 42... Ne6 {[%clk 0:01:07.5]} 43. Nc4 {[%clk 0:01:58.2]}
43... Rd7 {[%clk 0:01:04.8]} 44. Nd6 {[%clk 0:01:57.5]} 44... b6 {[%clk
0:01:02.4]} 45. b4 {[%clk 0:01:56.7]} 45... a5 {[%clk 0:01:00.3]} 46. Ke3 {[%clk
0:01:55.7]} 46... axb4 {[%clk 0:00:59]} 47. axb4 {[%clk 0:01:55.4]} 47... bxc5
{[%clk 0:00:58.3]} 48. dxc5 {[%clk 0:01:54.3]} 48... Nc7 {[%clk 0:00:56]} 49.
Ne4 {[%clk 0:01:50.6]} 49... Nd5+ {[%clk 0:00:52.3]} 50. Rxd5 {[%clk 0:01:49.1]}
1-0

[Event "Live Chess"]
[Site "Chess.com"]
[Date "2024.06.01"]
[Round "-"]
[White "KeithArkell"]
[Black "WildMantra69"]
[Result "1-0"]
[WhiteElo "2514"]
[BlackElo "2012"]
[TimeControl "300"]
[EndTime "9:14:06 PDT"]
[Termination "KeithArkell won by checkmate"]

1. d4 {[%clk 0:04:56.3]} 1... Nf6 {[%clk 0:04:56.5]} 2. Nf3 {[%clk 0:04:54.7]}
2... e6 {[%clk 0:04:55]} 3. c4 {[%clk 0:04:53.2]} 3... d5 {[%clk 0:04:53.2]} 4.
cxd5 {[%clk 0:04:51.6]} 4... exd5 {[%clk 0:04:52.1]} 5. Nc3 {[%clk 0:04:50.7]}
5... Nc6 {[%clk 0:04:47.6]} 6. Bg5 {[%clk 0:04:48.5]} 6... Be6 {[%clk
0:04:45.3]} 7. e3 {[%clk 0:04:37.3]} 7... a6 {[%clk 0:04:43.8]} 8. Bd3 {[%clk
0:04:35.3]} 8... h6 {[%clk 0:04:40.6]} 9. Bh4 {[%clk 0:04:32.9]} 9... g5 {[%clk
0:04:38.5]} 10. Bg3 {[%clk 0:04:32.2]} 10... Bd6 {[%clk 0:04:37.4]} 11. Bxd6
{[%clk 0:04:30.3]} 11... Qxd6 {[%clk 0:04:37.3]} 12. h3 {[%clk 0:04:25.6]} 12...
O-O-O {[%clk 0:04:28.3]} 13. Qa4 {[%clk 0:04:19.5]} 13... Nb4 {[%clk 0:04:25.7]}
14. Bb1 {[%clk 0:04:12.8]} 14... g4 {[%clk 0:04:16.5]} 15. hxg4 {[%clk
0:04:09.9]} 15... Nxg4 {[%clk 0:04:13.3]} 16. a3 {[%clk 0:04:08.2]} 16... Nc6
{[%clk 0:04:10.9]} 17. Bd3 {[%clk 0:04:06.4]} 17... Nb8 {[%clk 0:04:05.1]} 18.
Rc1 {[%clk 0:04:01.3]} 18... c6 {[%clk 0:04:00.3]} 19. Qb4 {[%clk 0:04:00.1]}
19... Qxb4 {[%clk 0:03:39.5]} 20. axb4 {[%clk 0:04:00]} 20... Nd7 {[%clk
0:03:38.2]} 21. Na4 {[%clk 0:03:57.4]} 21... Kc7 {[%clk 0:03:35.6]} 22. Nc5
{[%clk 0:03:56.4]} 22... Nb6 {[%clk 0:03:30.4]} 23. b3 {[%clk 0:03:53.3]} 23...
h5 {[%clk 0:03:24.9]} 24. Ke2 {[%clk 0:03:51.6]} 24... Nd7 {[%clk 0:03:21.5]}
25. Rh4 {[%clk 0:03:50.2]} 25... Nxc5 {[%clk 0:03:17.5]} 26. bxc5 {[%clk
0:03:48.9]} 26... f6 {[%clk 0:03:13.4]} 27. Rch1 {[%clk 0:03:46.4]} 27... Bf7
{[%clk 0:03:10.7]} 28. Bf5 {[%clk 0:03:45.3]} 28... Rhg8 {[%clk 0:03:07.3]} 29.
Ne1 {[%clk 0:03:40.4]} 29... Nh6 {[%clk 0:03:02.2]} 30. Bc2 {[%clk 0:03:38.8]}
30... Rg5 {[%clk 0:02:55.8]} 31. g3 {[%clk 0:03:37.4]} 31... Re8 {[%clk
0:02:52]} 32. Nf3 {[%clk 0:03:30.6]} 32... Rgg8 {[%clk 0:02:43.4]} 33. Rf4
{[%clk 0:03:29.6]} 33... f5 {[%clk 0:02:40.9]} 34. Ne5 {[%clk 0:03:27.1]} 34...
Rxe5 {[%clk 0:02:23.4]} 35. dxe5 {[%clk 0:03:27]} 35... Bg6 {[%clk 0:02:20.1]}
36. Rfh4 {[%clk 0:03:22.8]} 36... Ng4 {[%clk 0:02:14.4]} 37. f4 {[%clk
0:03:14.9]} 37... Nh6 {[%clk 0:02:05.5]} 38. Kf3 {[%clk 0:03:11.8]} 38... Nf7
{[%clk 0:02:02.4]} 39. Rxh5 {[%clk 0:03:10.2]} 39... Bxh5+ {[%clk 0:02:00.6]}
40. Rxh5 {[%clk 0:03:10.1]} 40... Nd8 {[%clk 0:01:53.2]} 41. Bxf5 {[%clk
0:03:07.3]} 41... b6 {[%clk 0:01:51.1]} 42. Rh7+ {[%clk 0:03:06.1]} 42... Kb8
{[%clk 0:01:50]} 43. cxb6 {[%clk 0:03:05.5]} 43... Nb7 {[%clk 0:01:49.2]} 44. b4
{[%clk 0:03:01.9]} 44... a5 {[%clk 0:01:47.8]} 45. bxa5 {[%clk 0:03:00.3]} 45...
Nxa5 {[%clk 0:01:47.7]} 46. e6 {[%clk 0:02:58.9]} 46... Nc4 {[%clk 0:01:46.1]}
47. e7 {[%clk 0:02:56.3]} 47... Nd6 {[%clk 0:01:43.8]} 48. Bd7 {[%clk 0:02:54]}
48... c5 {[%clk 0:01:29.3]} 49. Rh6 {[%clk 0:02:50.5]} 49... Ne4 {[%clk
0:01:25.5]} 50. e8=Q+ {[%clk 0:02:46.9]} 50... Rxe8 {[%clk 0:01:23.6]} 51. Bxe8
{[%clk 0:02:46.8]} 51... Nd2+ {[%clk 0:01:22.4]} 52. Ke2 {[%clk 0:02:45.5]}
52... Nc4 {[%clk 0:01:21.9]} 53. Bc6 {[%clk 0:02:44.3]} 53... d4 {[%clk
0:01:20.8]} 54. Rh8# {[%clk 0:02:42.8]} 1-0

[Event "Live Chess"]
[Site "Chess.com"]
[Date "2024.06.01"]
[Round "-"]
[White "ggosyaa"]
[Black "DoctorMantisTobogganMD"]
[Result "0-1"]
[WhiteElo "580"]
[BlackElo "2204"]
[TimeControl "300"]
[EndTime "9:14:19 PDT"]
[Termination "DoctorMantisTobogganMD won by checkmate"]

1. d4 {[%clk 0:04:57.4]} 1... Nf6 {[%clk 0:04:59]} 2. Nf3 {[%clk 0:04:52.9]}
2... d5 {[%clk 0:04:57.9]} 3. Bf4 {[%clk 0:04:51.2]} 3... c6 {[%clk 0:04:57.8]}
4. e3 {[%clk 0:04:49.3]} 4... Bg4 {[%clk 0:04:56.5]} 5. Nc3 {[%clk 0:04:44.5]}
5... Nbd7 {[%clk 0:04:51.4]} 6. Be2 {[%clk 0:04:41.1]} 6... e6 {[%clk
0:04:49.5]} 7. Ne5 {[%clk 0:04:37.7]} 7... Bxe2 {[%clk 0:04:47.9]} 8. Qxe2
{[%clk 0:04:36.1]} 8... Nxe5 {[%clk 0:04:47.3]} 9. Bxe5 {[%clk 0:04:35.3]} 9...
Bd6 {[%clk 0:04:46.5]} 10. O-O {[%clk 0:04:25]} 10... Bxe5 {[%clk 0:04:44.4]}
11. dxe5 {[%clk 0:04:24.3]} 11... Nd7 {[%clk 0:04:44.3]} 12. f4 {[%clk
0:04:04.7]} 12... g6 {[%clk 0:04:43.1]} 13. Rad1 {[%clk 0:04:00.6]} 13... Qb6
{[%clk 0:04:41.6]} 14. Na4 {[%clk 0:03:54.5]} 14... Qb4 {[%clk 0:04:39]} 15. Nc3
{[%clk 0:03:51.3]} 15... h5 {[%clk 0:04:35.4]} 16. e4 {[%clk 0:03:45.6]} 16...
Qxb2 {[%clk 0:04:31.4]} 17. Qd3 {[%clk 0:03:40.8]} 17... Qb6+ {[%clk 0:04:22.6]}
18. Kh1 {[%clk 0:03:37.5]} 18... O-O {[%clk 0:04:21.6]} 19. f5 {[%clk
0:03:32.7]} 19... Nxe5 {[%clk 0:04:05.9]} 20. Qg3 {[%clk 0:03:13.2]} 20... exf5
{[%clk 0:03:38.4]} 21. exf5 {[%clk 0:03:04]} 21... Qc7 {[%clk 0:03:31.6]} 22.
fxg6 {[%clk 0:02:53]} 22... fxg6 {[%clk 0:03:31.5]} 23. Rxf8+ {[%clk 0:02:45]}
23... Rxf8 {[%clk 0:03:29.6]} 24. h3 {[%clk 0:02:43.4]} 24... Qg7 {[%clk
0:03:17.4]} 25. Kh2 {[%clk 0:02:35]} 25... Nc4 {[%clk 0:03:11.3]} 26. Ne2 {[%clk
0:02:24.5]} 26... Qe5 {[%clk 0:02:48.7]} 27. Qxe5 {[%clk 0:02:17.4]} 27... Nxe5
{[%clk 0:02:48.6]} 28. Nf4 {[%clk 0:02:14.8]} 28... Rxf4 {[%clk 0:02:47.1]} 29.
Re1 {[%clk 0:02:10.2]} 29... Re4 {[%clk 0:02:41.4]} 30. Rb1 {[%clk 0:02:07.6]}
30... b5 {[%clk 0:02:36.3]} 31. h4 {[%clk 0:02:00.5]} 31... Rxh4+ {[%clk
0:02:34.3]} 32. Kg3 {[%clk 0:01:59.9]} 32... Rg4+ {[%clk 0:02:33.5]} 33. Kf2
{[%clk 0:01:58.6]} 33... a5 {[%clk 0:02:30.7]} 34. c3 {[%clk 0:01:52.5]} 34...
Rf4+ {[%clk 0:02:27.7]} 35. Ke3 {[%clk 0:01:51.8]} 35... Re4+ {[%clk 0:02:25.6]}
36. Kd2 {[%clk 0:01:49.7]} 36... Nc4+ {[%clk 0:02:24.9]} 37. Kd3 {[%clk
0:01:48.5]} 37... Re3+ {[%clk 0:02:23.6]} 38. Kc2 {[%clk 0:01:46.7]} 38... Na3+
{[%clk 0:02:20.5]} 39. Kb2 {[%clk 0:01:43.8]} 39... Nxb1 {[%clk 0:02:20.4]} 40.
Kxb1 {[%clk 0:01:43.1]} 40... Re2 {[%clk 0:02:19.5]} 41. Kc1 {[%clk 0:01:42.5]}
41... Rxa2 {[%clk 0:02:16.6]} 42. g3 {[%clk 0:01:40.8]} 42... b4 {[%clk
0:02:15.2]} 43. Kb1 {[%clk 0:01:39.9]} 43... Rg2 {[%clk 0:02:13.5]} 44. g4
{[%clk 0:01:36.3]} 44... h4 {[%clk 0:02:12.1]} 45. Kc1 {[%clk 0:01:35.4]} 45...
h3 {[%clk 0:02:11.8]} 46. Kd1 {[%clk 0:01:35.1]} 46... h2 {[%clk 0:02:11.7]} 47.
Ke1 {[%clk 0:01:34.8]} 47... h1=Q# {[%clk 0:02:11.6]} 0-1